Cogmind - Beta 12 @@@ ROGUE MODE // 2023.07.12 @ 15:00:54 Player: wchar_t Result: Destroyed by H-61 Shepherd with Heavy Assault Cannon Performance ------------- Evolutions (3) 1500 Regions Visited (11) 2200 Robots Destroyed (179) 895 Value Destroyed (5404) 5404 Prototype IDs (33) 660 Alien Tech Used (0) 0 Bonus (1428) 1428 TOTAL SCORE: 12087 Bonus ------- High Alert Combat Kills 718 Follower Combat Kills 427 Entered Garrisons 200 Used RIF Installer 500 Aligned with FarCom 300 Friendly Fire -717 Cogmind --------- Core Integrity 0/700 Matter 300/300 Energy 70/100 System Corruption 36% Temperature Cool (0) Movement Core (700) Ox13 Location -7/Factory Parts ------- > --- POWER (1) -------- (None) > --- PROPULSION (4) --- (None) > --- UTILITY (5) ------ Coolant Injector High-capacity Storage Unit > --- WEAPON (3) ------- (None) > --- INVENTORY (20) --- Light Nuclear Core Experimental Heat Sink Improved Sensor Array Modified TNC Transmission Jammer Reflective Plating Advanced Hacking Suite Relay Coupler [Sentry] (24) Relay Coupler [Hunter] (12) Relay Coupler [Behemoth] (8) Shock Rifle Particle Gun Phase Gun Firepult Remote Datajack Chainsword Peak State ------------ > --- POWER ------------ Improved Deuterium Engine > --- PROPULSION ------- Aluminum Leg Aluminum Leg Aluminum Leg Carbon-fiber Leg > --- UTILITY ---------- Experimental Heat Sink High-capacity Storage Unit Improved Medium Armor Plating Improved Shield Generator > --- WEAPON ----------- Heavy EM Shotgun Firepult > --- INVENTORY -------- Carbon-fiber Leg Improved Sensor Array Improved Sensor Array Modified TNC Transmission Jammer Reflective Plating Advanced Hacking Suite Relay Coupler [Sentry] Relay Coupler [Hunter] Relay Coupler [Behemoth] EM Shotgun Shock Rifle Phase Gun KE Penetrator Remote Datajack Chainsword [Rating: 56] Favorites ----------- Power Deuterium Engine Engine Deuterium Engine Power Core Light Nuclear Core Reactor Antimatter Reactor Propulsion Improved Aluminum Leg Treads Advanced Treads Leg Improved Aluminum Leg Wheel Armored Wheel Hover Unit Backup Propulsion III Utility High-capacity Storage Unit Device Cooling System Storage High-capacity Storage Unit Processor Improved Signal Interpreter Protection Hardened Light Armor Plating Weapon Advanced Beam Rifle Energy Gun Advanced Beam Rifle Energy Cannon Firepult Ballistic Gun Minigun Launcher Grenade Launcher Impact Weapon Mace Slashing Weapon Katana Build | -11 -10 -10 -9 -9 -9 -8 -8 -8 -7 -7 -7 ------- Run | Jun Mat Min Mat Min Exi Min Mat Gar Fac Was Fac Slots Evolved 6 | . . . 2 . . . 2 . 2 . . Power . | . . . . . . . . . . . . Propulsion 2 | . . . 1 . . . 1 . . . . Utility 3 | . . . 1 . . . . . 2 . . Weapon 1 | . . . . . . . 1 . . . . Parts Attached 175 | 6 6 8 17 5 15 . 28 28 18 16 28 Power 19 | 1 2 1 2 3 1 . 3 2 1 1 2 Engine 12 | 1 2 1 . 3 . . 3 . . . 2 Core 6 | . . . 2 . 1 . . 2 1 . . Reactor 1 | . . . . . . . . . . 1 . Propulsion 39 | 2 1 4 2 1 4 . 4 6 3 7 5 Treads 1 | . . . . . . . 1 . . . . Leg 33 | 2 1 2 . . 4 . 3 6 3 7 5 Wheel 5 | . . 2 2 1 . . . . . . . Hover . | . . . . . . . . . . . . Flight . | . . . . . . . . . . . . Utility 46 | 1 2 2 5 . 4 . 9 3 9 5 6 Device 25 | . 1 1 1 . 2 . 5 1 7 2 5 Storage 6 | 1 1 1 1 . . . . . . 2 . Processor 2 | . . . 1 . . . . . 1 . . Hackware . | . . . . . . . . . . . . Protection 13 | . . . 2 . 2 . 4 2 1 1 1 Artifact . | . . . . . . . . . . . . Weapon 71 | 2 1 1 8 1 6 . 12 17 5 3 15 Energy Gun 25 | 2 1 1 4 1 . . 3 2 1 . 10 Energy Cannon 3 | . . . . . . . . . . 1 2 Ballistic Gun 28 | . . . 1 . 3 . 8 7 4 2 3 Ballistic Cannon . | . . . . . . . . . . . . Launcher 9 | . . . 3 . 3 . 1 2 . . . Special Weapon . | . . . . . . . . . . . . Impact Weapon 2 | . . . . . . . . 2 . . . Slashing Weapon 4 | . . . . . . . . 4 . . . Piercing Weapon . | . . . . . . . . . . . . Special Melee Weapon . | . . . . . . . . . . . . Unidentified Prototypes 10 | . . . 2 . 4 . 2 . . 2 . Corrupted Parts 3 | . . . . . . . . . . . 3 System Corruption 22 | . . . . . . . . . . . 22 Parts Lost 44 | . 1 2 1 1 5 . 2 3 7 . 22 Power 7 | . 1 1 . 1 1 . . . . . 3 Propulsion 15 | . . . 1 . 3 . 1 . 2 . 8 Utility 9 | . . . . . 1 . . 1 2 . 5 Weapon 13 | . . 1 . . . . 1 2 3 . 6 Highest Loss Streak 12 | . 1 2 1 1 4 . 1 2 2 . 12 To Critical Strikes 3 | . . . . . 3 . . . . . . Average Slot Usage (%) 95 | . 91 97 94 99 96 100 96 99 94 69 94 Engine 5 | . 11 13 2 9 8 . 6 7 . 2 1 Core 2 | . . . 8 1 1 11 2 1 7 . . Treads 1 | . . . . . . . 4 4 . . . Leg 20 | . 27 18 . . 6 33 28 31 29 17 28 Wheel 9 | . . 9 32 33 26 . . . . . . Device 11 | . 8 12 12 11 10 22 10 9 12 11 14 Storage 9 | . 14 14 11 11 11 11 9 9 7 4 7 Processor 1 | . . . 2 . . . . . 5 7 5 Protection 6 | . . . 3 11 9 . 7 8 7 4 6 Energy Gun 14 | . 28 27 21 22 14 . 9 12 3 5 14 Ballistic Gun 7 | . . . . . 6 11 17 9 18 9 6 Naked Turns . | . . . . . . . . . . . . Heaviest Build 75 | 11 20 50 58 58 70 67 75 70 70 74 75 Greatest Support 75 | 20 20 24 36 36 65 65 75 54 54 49 46 Greatest Overweight (x) 13 | 1 1 2 2 1 5 1 1 1 1 5 13 Average Overweight (x) . | . . . 1 1 1 1 . 1 1 . 1 Largest Inventory Capacity 20 | 8 10 20 20 20 20 20 20 20 20 20 20 Average Capacity 18 | 7 8 13 20 20 20 20 20 20 20 13 20 Most Carried 20 | 4 10 15 20 20 20 20 20 20 20 18 20 Average Carried 17 | 2 7 11 19 19 17 20 19 19 18 10 18 Final Capacity 20 | 8 10 20 20 20 20 20 20 20 20 20 20 Final Carried 20 | 4 10 15 20 20 20 20 20 20 18 17 17 Class Distribution -------------------- 45% | Mutant 23% | Scavenger-Tank 8% | Tank 8% | Scavenger-Mutant 6% | Commander-Mutant 3% | Scavenger-Skirmisher Dominant Class ---------------- Mutant | -10/Materials Mutant | -10/Mines Mutant | -9/Materials Mutant | -9/Mines Mutant | -9/Exiles Scavenger-Mutant | -8/Mines Tank | -8/Materials Commander-Mutant | -8/Garrison Scavenger-Tank | -7/Factory Scavenger-Tank | -7/Waste Scavenger-Tank | -7/Factory Resources | -11 -10 -10 -9 -9 -9 -8 -8 -8 -7 -7 -7 ----------- Run | Jun Mat Min Mat Min Exi Min Mat Gar Fac Was Fac Matter Collected 4262 | 260 30 110 238 75 370 . 584 865 759 514 457 Remotely . | . . . . . . . . . . . . Salvage Created 7451 | . 192 416 1303 305 140 . 616 905 1505 446 1623 Parts 360 | . 10 18 73 29 5 . 31 37 67 5 85 Haulers Intercepted 11 | . . . 3 . . . 2 . 4 . 2 Recyclers Shooed 8 | . . 1 1 . . . . . 4 . 2 Parts Field Recycled . | . . . . . . . . . . . . Retrieved Matter . | . . . . . . . . . . . . Parts Self-Destructed . | . . . . . . . . . . . . Prevented . | . . . . . . . . . . . . Kills | -11 -10 -10 -9 -9 -9 -8 -8 -8 -7 -7 -7 ------- Run | Jun Mat Min Mat Min Exi Min Mat Gar Fac Was Fac Combat Hostiles Destroyed 129 | . 6 7 26 14 8 . 11 18 16 1 22 Guns 96 | . 6 7 16 11 1 . 8 16 15 1 15 Cannons 1 | . . . . . . . . . . . 1 AOE 27 | . . . 9 3 7 . 3 2 1 . 2 Classes Destroyed 17 | . 3 3 3 3 . . 1 1 . 1 2 Worker 7 | . . . 1 2 . . 1 . 2 . 1 Builder 10 | . . . . 2 . . 1 . 2 . 5 Tunneler 1 | . . 1 . . . . . . . . . Hauler 11 | . . . 3 . . . 2 . 4 . 2 Recycler 18 | . . 3 4 . . . 1 . 8 . 2 Mechanic 1 | . . . . . . . . . . . 1 Watcher 7 | . 1 . 2 . . . . . 1 . 3 Swarmer 39 | . 3 3 8 10 . . 4 1 5 . 5 Grunt 46 | . 3 3 11 2 . . 5 8 8 . 6 Duelist 6 | . . . . 1 . . . 4 . . 1 Sentry 14 | . . . 7 . . . 1 4 1 . 1 Demolisher 1 | . . . . 1 . . . . . . . Specialist 4 | . . . . . . . . . . . 4 Hunter 1 | . . . . . . . 1 . . . . Programmer 8 | . . . . . . . . 1 2 . 5 Compactor 1 | . . . . . . . . . . 1 . Assembled 8 | . . 1 . . 7 . . . . . . Thug 2 | . . . . . . . . . . 2 . Martyr 1 | . . . . . . . . . . 1 . Best Kill Streak 9 | . 3 2 9 7 7 . 5 3 7 1 8 Combat Bots Only 7 | . 3 2 7 7 7 . 4 3 4 1 5 Max Kills in Single Turn 6 | . 1 1 3 2 2 . 4 2 6 1 4 Gunslinging 1 | . . . . 1 . . . . . . 1 Exploded 3 | . . . 3 2 2 . 3 2 1 . 1 Melee . | . . . . . . . . . . . . Uniques/NPCs Destroyed 1 | . . . . . 1 . . . . . . 8R-AWN (-9/Exiles) Combat | -11 -10 -10 -9 -9 -9 -8 -8 -8 -7 -7 -7 -------- Run | Jun Mat Min Mat Min Exi Min Mat Gar Fac Was Fac Damage Taken 8331 | . 191 239 725 270 1176 . 669 1379 1057 . 2625 Core 1318 | . 49 28 109 58 53 . 12 275 110 . 624 Absorbed by Shields 682 | . . . . . . . . 378 99 . 205 Regen/Repaired (Parts) 140 | . . . . . . . . . . 140 . Core Remaining (%) 65 | 100 . 69 . . . 45 . 47 . . . Volleys Fired 454 | . 20 32 62 20 43 . 46 79 67 14 71 Largest 3 | . 2 2 2 2 2 . 3 3 3 3 3 Hottest 300 | . 100 100 122 122 46 . 145 159 125 98 300 Shots Fired 1020 | . 40 63 121 37 78 . 106 204 191 36 144 Gun 994 | . 40 63 114 35 70 . 104 199 191 36 142 Cannon 2 | . . . . . . . . . . . 2 Launcher 24 | . . . 7 2 8 . 2 5 . . . Special . | . . . . . . . . . . . . Kinetic 463 | . . . . . 70 . 56 98 176 24 39 Thermal 454 | . 40 63 114 35 . . 48 101 15 12 26 Explosive 24 | . . . 7 2 8 . 2 5 . . . Electromagnetic 79 | . . . . . . . . . . . 79 Robot Hit Streak 46 | . 9 20 6 8 46 . 16 16 13 10 15 Robot Miss Streak 6 | . 3 4 4 2 3 . 4 3 6 2 5 Penetration Max 1 | . . . . . . . . . 1 . 1 Secondary Targets 14 | . . 1 . 3 . . 3 4 2 . 1 Max Gunslinging Chain 1 | . . 1 . 1 . . 1 1 1 . 1 Shots Hit Robots 671 | . 24 45 72 25 68 . 65 141 107 26 98 Core Hits 323 | . 10 21 36 18 29 . 31 52 47 11 68 Critical Kills 2 | . . . . . . . . . 2 . . Critical Parts Destroyed 3 | . . . . . . . . . 3 . . Critical Strikes 38 | . 7 3 5 5 . . 4 8 5 . 1 Burn 32 | . 7 3 5 5 . . 4 8 . . . Destroy 5 | . . . . . . . . . 5 . . Corrupt 1 | . . . . . . . . . . . 1 Melee Attacks 46 | . . . . . . . . 46 . . . Impact 27 | . . . . . . . . 27 . . . Slashing 19 | . . . . . . . . 19 . . . Piercing . | . . . . . . . . . . . . Sneak Attacks . | . . . . . . . . . . . . Combat Hostiles . | . . . . . . . . . . . . Follow-up Attacks . | . . . . . . . . . . . . Damage Inflicted 15226 | . 316 590 2079 738 1493 . 1338 2647 2870 557 2598 Guns 11997 | . 314 562 1380 460 971 . 1175 2388 2279 557 1911 Cannons 53 | . . . . . . . . . . . 53 Explosions 2997 | . . . 674 252 508 . 160 257 550 . 596 Melee . | . . . . . . . . . . . . Ramming 179 | . 2 28 25 26 14 . 3 2 41 . 38 Kinetic 5485 | . . . . . 971 . 575 944 2088 425 482 Thermal 6769 | . 314 562 1380 550 . . 600 1444 741 132 1046 Explosive 1761 | . . . 674 162 508 . 160 257 . . . Electromagnetic 1032 | . . . . . . . . . . . 1032 Impact . | . . . . . . . . . . . . Slashing . | . . . . . . . . . . . . Piercing . | . . . . . . . . . . . . Highest Corruption 36 | . . 3 . . . . . 2 5 5 36 Average Corruption 7 | . . 3 . . . . . 1 1 5 13 Corruption Purged . | . . . . . . . . . . . . Corruption Blocked . | . . . . . . . . . . . . Effects 108 | . . 3 . . . . . 5 15 18 67 Message Errors 31 | . . 2 . . . . . 2 3 4 20 Matter Fused 24 | . . 1 . . . . . . 6 2 15 Heat Flow Errors 6 | . . . . . . . . . 1 2 3 Energy Discharges 8 | . . . . . . . . 1 1 2 4 Parts Rejected 1 | . . . . . . . . . . 1 . Parts Fused 1 | . . . . . . . . . . . 1 Data Loss (minor) 14 | . . . . . . . . . 2 4 8 Data Loss (major) 6 | . . . . . . . . 2 . . 4 Misfires 5 | . . . . . . . . . 2 1 2 Misdirections 1 | . . . . . . . . . . . 1 Weapon Failures 11 | . . . . . . . . . . 2 9 Overload Shots . | . . . . . . . . . . . . Overflow Damage 230 | . . . 46 39 16 . . 1 107 . 21 Projectiles 4 | . . . . . . . . . . . 4 Explosions 226 | . . . 46 39 16 . . 1 107 . 17 Melee . | . . . . . . . . . . . . Knockbacks . | . . . . . . . . . . . . Impact . | . . . . . . . . . . . . Kinetic . | . . . . . . . . . . . . Secondary . | . . . . . . . . . . . . Self-Inflicted Damage 255 | . . 9 12 45 22 . 23 19 . . 125 Shots 13 | . . . . 2 1 . 1 1 . . 8 Rammed 13 | . . 1 3 2 6 . . . . . 1 Targets Rammed 33 | . 1 4 3 2 6 . 2 1 6 . 8 Kicked 20 | . 1 3 . . . . 2 1 6 . 7 Crushed . | . . . . . . . . . . . . Highest Temperature 555 | . 156 102 261 30 . . 555 418 64 241 420 Average Temperature 87 | . 43 34 69 10 . . 175 72 20 115 102 Received Heat Transfer 1634 | . 54 93 258 12 . . 180 575 168 . 294 Effects 10 | . . . . . . . 9 . . . 1 Shutdowns 2 | . . . . . . . 2 . . . . Energy Bleed 2 | . . . . . . . 2 . . . . Interference 1 | . . . . . . . . . . . 1 Matter Decay 1 | . . . . . . . 1 . . . . Damage (major) 4 | . . . . . . . 4 . . . . Siege Activations . | . . . . . . . . . . . . Robots Corrupted 1 | . . . . . . . . . . . 1 Combat Hostiles 1 | . . . . . . . . . . . 1 Parts Fried 6 | . . . . 1 . . . . . . 5 Impact Corruptions 1 | . . . . 1 . . . . . . . Robots Melted 5 | . . . 1 . . . . . . . 4 Combat Hostiles 4 | . . . 1 . . . . . . . 3 Parts Melted 46 | . 4 3 8 4 . . 4 6 1 . 16 Heat Transferred 16137 | . 1443 1887 2961 1321 . . 1406 2657 820 370 3272 Parts Sabotaged . | . . . . . . . . . . . . Parts Stolen . | . . . . . . . . . . . . Parts Stripped . | . . . . . . . . . . . . Power Chain Reactions 2 | . . . . . . . . . . . 2 Missiles Intercepted . | . . . . . . . . . . . . Alert | -11 -10 -10 -9 -9 -9 -8 -8 -8 -7 -7 -7 ------- Run | Jun Mat Min Mat Min Exi Min Mat Gar Fac Was Fac Peak Influence 1289 | . 192 155 653 625 . . 209 1289 1089 404 309 Initial 676 | . . . . 254 . . . 81 676 351 39 Average 331 | . 111 38 350 456 . . 90 534 817 193 93 Maximum Alert Level 4 | . . . 2 2 . . 1 4 3 2 1 Low Security (%) 45 | 100 100 100 19 . . 100 92 17 . 48 81 Level 1 22 | . . . 46 34 . . 7 31 . 50 18 Level 2 18 | . . . 33 65 . . . 24 31 . . Level 3 11 | . . . . . . . . 18 68 . . Level 4 2 | . . . . . . . . 9 . . . Level 5 . | . . . . . . . . . . . . High Security . | . . . . . . . . . . . . Max Security . | . . . . . . . . . . . . Squads Dispatched 20 | . 2 . 4 . . . 1 . 7 . 6 Investigation 5 | . . . 2 . . . 1 . 2 . . Extermination 4 | . . . . . . . . . 1 . 3 Reinforcement 8 | . 2 . 2 . . . . . 1 . 3 Assault . | . . . . . . . . . . . . Garrison 3 | . . . . . . . . . 3 . . Intercept . | . . . . . . . . . . . . Searches Triggered . | . . . . . . . . . . . . Construction Impeded 1 | . . . . . . . . . . . 1 Haulers Reinforced 1 | . . . . . . . . . . . 1 Active Scanning Responses . | . . . . . . . . . . . . Cargo Convoy Interrupts 1 | . . . . . . . . . . . 1 Stealth | -11 -10 -10 -9 -9 -9 -8 -8 -8 -7 -7 -7 --------- Run | Jun Mat Min Mat Min Exi Min Mat Gar Fac Was Fac Distress Signals 9 | . 2 1 1 1 . . 2 . . . 2 Communications Jammed . | . . . . . . . . . . . . Distress Signals . | . . . . . . . . . . . . Times Spotted 185 | . 13 10 32 12 7 . 18 26 26 7 34 Peak Tracking Total 9 | . 4 3 4 6 9 . 3 4 5 4 7 Tactical Retreats 8 | . 1 1 1 . . . . 1 2 1 1 Traps | -11 -10 -10 -9 -9 -9 -8 -8 -8 -7 -7 -7 ------- Run | Jun Mat Min Mat Min Exi Min Mat Gar Fac Was Fac Traps Triggered 13 | . 2 . 3 . . . . 5 2 . 1 Indirectly . | . . . . . . . . . . . . Trap Hack Attempts . | . . . . . . . . . . . . Triggered . | . . . . . . . . . . . . Disarmed . | . . . . . . . . . . . . Reprogrammed . | . . . . . . . . . . . . Reused . | . . . . . . . . . . . . Traps Extracted . | . . . . . . . . . . . . Installed . | . . . . . . . . . . . . Triggered 4 | . . . . . . . . . . . 4 Machines | -11 -10 -10 -9 -9 -9 -8 -8 -8 -7 -7 -7 ---------- Run | Jun Mat Min Mat Min Exi Min Mat Gar Fac Was Fac Machines Disabled 20 | . . . 2 2 5 . . 3 7 . 1 Max in Single Turn 7 | . . . 1 2 1 . . 1 7 . 1 Garrison Relay 3 | . . . . . . . . 3 . . . Machines Repaired . | . . . . . . . . . . . . Machines Sabotaged . | . . . . . . . . . . . . Overloaded Fab Kills . | . . . . . . . . . . . . Hacking | -11 -10 -10 -9 -9 -9 -8 -8 -8 -7 -7 -7 --------- Run | Jun Mat Min Mat Min Exi Min Mat Gar Fac Was Fac Machines Accessed 10 | . . . . . 1 . 2 2 5 . . Terminals 6 | . . . . . . . . 2 4 . . Fabricators 1 | . . . . . . . . . 1 . . Repair Stations . | . . . . . . . . . . . . Recycling Units 1 | . . . . . . . 1 . . . . Scanalyzers . | . . . . . . . . . . . . Garrison Access 1 | . . . . . . . 1 . . . . Total Hacks 19 | . . . . . 1 . 4 3 11 . . Successful 9 | . . . . . 1 . 2 2 4 . . Failed 10 | . . . . . . . 2 1 7 . . Catastrophic 2 | . . . . . . . . . 2 . . Database Lockouts . | . . . . . . . . . . . . Manual 4 | . . . . . 1 . . . 3 . . Terminals 12 | . . . . . . . . 3 9 . . Fabricators 2 | . . . . . . . . . 2 . . Repair Stations . | . . . . . . . . . . . . Recycling Units 3 | . . . . . . . 3 . . . . Scanalyzers . | . . . . . . . . . . . . Garrison Access 1 | . . . . . . . 1 . . . . Terminal Hacks 5 | . . . . . 1 . . 2 2 . . Emergency Access Points 1 | . . . . . . . . 1 . . . Locate Traps 1 | . . . . . . . . . 1 . . Hauler Manifests 1 | . . . . . . . . . 1 . . Security Stations 1 | . . . . . . . . 1 . . . EX-Prototype ID Bank 1 | . . . . . 1 . . . . . . Fabricator Hacks 1 | . . . . . . . . . 1 . . Network Status 1 | . . . . . . . . . 1 . . Repair Station Hacks . | . . . . . . . . . . . . Recycling Unit Hacks 1 | . . . . . . . 1 . . . . Process 1 | . . . . . . . 1 . . . . Scanalyzer . | . . . . . . . . . . . . Garrison Access Hacks 1 | . . . . . . . 1 . . . . Unlock Access 1 | . . . . . . . 1 . . . . Unauthorized Hacks 1 | . . . . . . . . . 1 . . Terminals 1 | . . . . . . . . . 1 . . Botnet 1 | . . . . . . . . . 1 . . Fabricators . | . . . . . . . . . . . . Repair Stations . | . . . . . . . . . . . . Recycling Units . | . . . . . . . . . . . . Scanalyzers . | . . . . . . . . . . . . Garrison Access . | . . . . . . . . . . . . Data Cores Recovered . | . . . . . . . . . . . . Used . | . . . . . . . . . . . . Hacking Detections 7 | . . . . . . . 1 1 5 . . Full Trace Events 2 | . . . . . . . 1 . 1 . . Feedback Events 1 | . . . . . . . . . 1 . . Corruption 1 | . . . . . . . . . 1 . . Feedback Blocked . | . . . . . . . . . . . . Robot Schematics Acquired . | . . . . . . . . . . . . Robots Built . | . . . . . . . . . . . . Authchips . | . . . . . . . . . . . . Time . | . . . . . . . . . . . . Total Robot Build Rating . | . . . . . . . . . . . . Part Schematics Acquired . | . . . . . . . . . . . . Parts Built . | . . . . . . . . . . . . Authchips . | . . . . . . . . . . . . Time . | . . . . . . . . . . . . Total Part Build Rating . | . . . . . . . . . . . . Parts Repaired . | . . . . . . . . . . . . Time . | . . . . . . . . . . . . Parts Recycled . | . . . . . . . . . . . . Recycled Matter . | . . . . . . . . . . . . Retrieved Matter . | . . . . . . . . . . . . Retrieved Components . | . . . . . . . . . . . . Parts Scanalyzed . | . . . . . . . . . . . . Part Schematics Acquired . | . . . . . . . . . . . . Parts Damaged . | . . . . . . . . . . . . Bothacking | -11 -10 -10 -9 -9 -9 -8 -8 -8 -7 -7 -7 ------------ Run | Jun Mat Min Mat Min Exi Min Mat Gar Fac Was Fac Used RIF Installer 1 | . . . . . . . . 1 . . . Robots Hacked . | . . . . . . . . . . . . Non-combat . | . . . . . . . . . . . . Combat . | . . . . . . . . . . . . Robot Hacks Applied . | . . . . . . . . . . . . Relay Couplers Released 12 | . . . . . . . . 12 . . . Machine Destruction 12 | . . . . . . . . 12 . . . Fabnet Peak Effective % . | . . . . . . . . . . . . Robots Rewired 6 | . . . . . . . . 6 . . . Allies Hacked . | . . . . . . . . . . . . Hacks Repelled . | . . . . . . . . . . . . Allies | -11 -10 -10 -9 -9 -9 -8 -8 -8 -7 -7 -7 -------- Run | Jun Mat Min Mat Min Exi Min Mat Gar Fac Was Fac Total Allies 31 | . . 4 . 2 . . . 6 . 19 . Largest Group 19 | . . 3 3 2 . . . 6 . 19 1 Highest-Rated Group 465 | . . 40 40 46 . . . 108 . 465 17 Highest-Rated Ally 35 | . . 31 16 31 . . . 18 . 35 17 Total Orders 4 | . . . . . . . . 4 . . . STAY 2 | . . . . . . . . 2 . . . FOLLOW 2 | . . . . . . . . 2 . . . Ally Attacks 237 | . . 10 21 10 . . . 31 . 165 . Total Damage 6277 | . . 167 219 105 . . . 825 . 4961 . Kills 27 | . . 4 1 3 . . . 8 . 11 . Allies Corrupted 1 | . . . . 1 . . . . . . . Allies Melted . | . . . . . . . . . . . . Intel | -11 -10 -10 -9 -9 -9 -8 -8 -8 -7 -7 -7 ------- Run | Jun Mat Min Mat Min Exi Min Mat Gar Fac Was Fac Robot Analysis Total . | . . . . . . . . . . . . Derelict Logs Recovered 2 | . . 1 . 1 . . . . . . . Drone Launches . | . . . . . . . . . . . . Drone Recoveries . | . . . . . . . . . . . . Exploration | -11 -10 -10 -9 -9 -9 -8 -8 -8 -7 -7 -7 ------------- Run | Jun Mat Min Mat Min Exi Min Mat Gar Fac Was Fac Turns Passed 11742 | 74 400 1205 1170 852 1086 107 771 2476 1159 777 1665 Spaces Moved 6557 | 58 262 838 856 634 753 57 326 1030 454 632 657 Core 381 | 13 . . . . . . . . . 367 1 Treads . | . . . . . . . . . . . . Legs 3664 | 45 262 571 . . 56 57 326 1030 454 207 656 Wheels 2454 | . . 267 856 634 697 . . . . . . Hover 58 | . . . . . . . . . . 58 . Flight . | . . . . . . . . . . . . Fastest Speed 50 | 50 120 105 105 105 105 190 120 190 190 50 190 Average Speed 139 | 106 120 117 105 105 111 190 171 190 190 101 191 Slowest Speed 700 | 120 190 120 120 105 190 190 190 190 190 470 700 Overloaded Moves . | . . . . . . . . . . . . Propulsion Burnouts . | . . . . . . . . . . . . Robots Hopped . | . . . . . . . . . . . . Cave-ins Triggered . | . . . . . . . . . . . . Exploration Rate (%) 52 | 4 53 90 91 99 71 15 32 61 13 89 14 Regions Visited 11 Branch Regions 4 Pre-discovered Areas . | . . . . . . . . . . . . Known Exits Taken 2 | . . . . . . 1 1 . . . . Unknown Exits Taken 6 | 1 1 1 1 1 1 . . . . . . Scrap Searched 2 | . . 1 . 1 . . . . . . . Spaces Dug 5 | . . . . . . . . 5 . . . Terrain Destroyed 203 | . . . 55 20 34 . 6 38 34 4 12 Melee 5 | . . . . . . . . 5 . . . Projectile 14 | . . . 1 2 . . . 1 3 4 3 AOE 184 | . . . 54 18 34 . 6 32 31 . 9 Terrain Rammed . | . . . . . . . . . . . . Walls Destroyed . | . . . . . . . . . . . . Machines Disabled . | . . . . . . . . . . . . Actions | -11 -10 -10 -9 -9 -9 -8 -8 -8 -7 -7 -7 --------- Run | Jun Mat Min Mat Min Exi Min Mat Gar Fac Was Fac Total 8216 | 67 307 998 1021 784 916 56 459 1320 606 747 935 Wait 617 | . 7 101 34 119 71 . 28 22 53 44 138 Move 6546 | 57 261 837 855 633 752 56 325 1028 454 631 657 Hop . | . . . . . . . . . . . . Pick Up 112 | 4 8 10 23 2 13 . 9 9 3 15 16 Fast Attach 61 | 6 5 1 5 2 5 . 8 3 4 13 9 Attach 32 | . . 2 3 1 4 . 2 3 7 2 8 Detach 18 | . . . 2 . 4 . 1 1 2 4 4 Swap 82 | . 1 5 9 2 6 . 18 22 7 1 11 Drop 124 | . 4 6 25 3 12 . 20 16 3 23 12 Fire 454 | . 20 32 62 20 43 . 46 79 67 14 71 Melee 46 | . . . . . . . . 46 . . . Ram 13 | . . 1 3 2 6 . . . . . 1 Kick 20 | . 1 3 . . . . 2 1 6 . 7 Crush . | . . . . . . . . . . . . Escape Stasis 10 | . . . . . . . . 10 . . . Rewire 81 | . . . . . . . . 80 . . 1 Trap . | . . . . . . . . . . . . Miscellaneous . | . . . . . . . . . . . . Route ------- -11/Junkyard -10/Materials (discovered 2 exits: [*Mat] / [*Min]) -10/Mines (discovered 2 exits: [*Mat x2]) -9/Materials (discovered 5 exits: *Mat x3 / [*Min x2]) -9/Mines (discovered 3 exits: *Mat x2 / *Exi) -9/Exiles -8/Mines -8/Materials -8/Garrison -7/Factory -7/Waste -7/Factory History --------- Turn | Location | Event 13 | -11/Junkyard | Discovered new exit (range 16) 75 | -11/Junkyard | Entered Materials 317 | -10/Materials | Build established: Mutant 338 | -10/Materials | Discovered new exit (range 3) 442 | -10/Materials | Discovered new exit (range 7) 475 | -10/Materials | Entered Mines 477 | -10/Mines | Discovered new exit (range 3) 945 | -10/Mines | Learned 4 Materials zone layouts 959 | -10/Mines | Received a Mining Laser from a helpful Derelict 1057 | -10/Mines | Excavation squad dispatched 1057 | -10/Mines | A large section of the Mines collapsed 1552 | -10/Mines | Received a Rocket Launcher from a helpful Derelict 1633 | -10/Mines | Discovered new exit (range 8) 1666 | -10/Mines | Assisted by bots powering up and referring to "LRC-V3" 1680 | -10/Mines | Entered Materials 1680 | -9/Materials | Accompanied by 3 allies 1680 | -9/Materials | Evolved 2 slots: Propulsion x1, Utility x1 1681 | -9/Materials | Identified exit to Materials 1831 | -9/Materials | Destroyed 7 combat bots 1883 | -9/Materials | Discovered exit to Materials (range 18) 1963 | -9/Materials | Discovered new exit (range 17) 2383 | -9/Materials | Discovered new exit (range 13) 2545 | -9/Materials | Discovered exit to Materials (range 12) 2850 | -9/Materials | Entered Mines 2850 | -9/Mines | Discovered new exit (range 6) 2884 | -9/Mines | Met a Derelict bent on vengeance 2978 | -9/Mines | Discovered exit to Materials (range 15) 2987 | -9/Mines | Destroyed 7 combat bots 3089 | -9/Mines | Learned Materials terminal intel 3212 | -9/Mines | Discovered exit to Materials (range 5) 3282 | -9/Mines | Assembled infested the area 3697 | -9/Mines | Deemed a non-threat by the Exiles lab entrance 3702 | -9/Mines | Entered Exiles 3729 | -9/Exiles | Met 8R-AWN 3747 | -9/Exiles | Met EX-HEX 3774 | -9/Exiles | Met EX-BIN 3788 | -9/Exiles | Aligned with FarCom system 3789 | -9/Exiles | Given EX-Vault access code 3816 | -9/Exiles | Opened EX-Vault 3841 | -9/Exiles | Warned to stay clear of 0b10 Research branches 3878 | -9/Exiles | Met EX-DEC 3939 | -9/Exiles | Discovered new exit (range 11) 4147 | -9/Exiles | Found Firepult 4150 | -9/Exiles | Found Modified TNC 4344 | -9/Exiles | Found Cloak of Protection 4428 | -9/Exiles | Attacked by the Exiles 4455 | -9/Exiles | Core integrity fell below 50% 4486 | -9/Exiles | Destroyed 7 combat bots 4603 | -9/Exiles | Lost 4 parts (1p2n1u) 4639 | -9/Exiles | Destroyed 8R-AWN 4670 | -9/Exiles | Found Prototype Ballistic Gun 4670 | -9/Exiles | Identified 8R-AWN's Boregun 4788 | -9/Exiles | Stole three prototypes: Modified TNC, Cloak of Protection, Firepult 4788 | -9/Exiles | Entered Mines 4887 | -8/Mines | Discovered exit to Materials (range 5) 4895 | -8/Mines | Entered Materials 4895 | -8/Materials | Evolved 2 slots: Propulsion x1, Weapon x1 4896 | -8/Materials | Loaded intel: 11 terminal locations 5594 | -8/Materials | Identified exit to Garrison 5666 | -8/Materials | Entered Garrison 5799 | -8/Garrison | Build established: Tank 5831 | -8/Garrison | Garrison Relay disabled 6028 | -8/Garrison | Triggered checkpoint 6090 | -8/Garrison | Triggered checkpoint 6118 | -8/Garrison | Triggered checkpoint 7039 | -8/Garrison | Installed Relay Interface Framework 7140 | -8/Garrison | Triggered checkpoint 7298 | -8/Garrison | Discovered new exit (range 11) 7334 | -8/Garrison | Learned Factory security intel 7364 | -8/Garrison | Triggered checkpoint 7626 | -8/Garrison | Triggered checkpoint 7849 | -8/Garrison | Garrison Relay disabled 7863 | -8/Garrison | Garrison Relay disabled 8050 | -8/Garrison | Triggered checkpoint 8054 | -8/Garrison | Build established: Scavenger-Mutant 8064 | -8/Garrison | Core integrity fell below 50% 8142 | -8/Garrison | Entered Factory 8142 | -7/Factory | Evolved 2 slots: Utility x2 8607 | -7/Factory | Garrison activated, responded to threat 9301 | -7/Factory | Sucked down chute 9301 | -7/Factory | Entered Waste 9334 | -7/Waste | Spotted C-40 Crusher 9403 | -7/Waste | Spotted C-40 Crusher 9412 | -7/Waste | Spotted C-40 Crusher 9438 | -7/Waste | Spotted C-40 Crusher 9476 | -7/Waste | Spotted C-40 Crusher 9487 | -7/Waste | Discovered new exit (range 16) 9492 | -7/Waste | Warlord forces began an assault 9507 | -7/Waste | Allies destroyed C-40 Crusher 9507 | -7/Waste | Spotted C-40 Crusher 9511 | -7/Waste | Allies destroyed C-40 Crusher 9515 | -7/Waste | Allies destroyed C-40 Crusher 9579 | -7/Waste | Destroyed C-40 Crusher 9654 | -7/Waste | Build established: Mutant 9895 | -7/Waste | Found Damper Plating 9969 | -7/Waste | Build established: Scavenger-Tank 10037 | -7/Waste | Identified exit to Factory 10078 | -7/Waste | Entered Factory 10078 | -7/Factory | Accompanied by 1 ally 10352 | -7/Factory | P-60 Hacker assimilated allied 4X-9OL(m) 10890 | -7/Factory | System corruption reached 10% 11222 | -7/Factory | Cargo convoy interrupted 11377 | -7/Factory | Lost 9 parts (2p2n3u2w) 11397 | -7/Factory | System corruption reached 30% 11715 | -7/Factory | Core integrity fell below 50% 11739 | -7/Factory | Core integrity fell below 20% 11743 | -7/Factory | Destroyed by H-61 Shepherd with Heavy Assault Cannon Last Messages --------------- 11716_ S-27 Virus destroyed. 11721_ GLXKH5JRJL